lending/lending_fUSD_20251022
["ID","MTS","AMOUNT","RATE_DAILY","PERIOD"]
[392055018,1761124244472,-150.0,0.00034019,2]
[392055019,1761124244484,-1425.0,0.00034023,2]
[392055020,1761124244493,-5800.0,0.0003403,2]
[392055021,1761124244503,-1425.0,0.00034034,2]
[392055022,1761124244512,-151.0,0.00034047,7]
[392055023,1761124244521,-151.0,0.00034047,7]
[392055024,1761124244531,-5000.0,0.00034063,2]
[392055026,1761124244540,-152.16217092,0.0003407,2]
[392055028,1761124244555,-350.26646697,0.00034073,5]
[392055030,1761124244579,-149.73353303,0.00034073,5]
[392055031,1761124244588,-500.0,0.00034073,5]
[392055032,1761124244597,-502.44208721,0.00034073,5]
[392055033,1761124244606,-500.0,0.00034083,5]
[392055034,1761124244616,-263.73387382,0.00034083,5]
[392055035,1761124244625,-500.0,0.00034083,5]
[392055036,1761124244634,-500.0,0.00034083,5]
[392055037,1761124244645,-150.0,0.00034083,5]
[392055038,1761124244654,-249.16859255,0.00034083,5]
[392055039,1761124244663,-500.0,0.00034083,5]
[392055040,1761124244672,-500.0,0.00034083,2]
[392055041,1761124244683,-423.0,0.00034083,5]
[392055042,1761124244693,-150.0,0.00034083,2]
[392055043,1761124244707,-500.0,0.00034083,5]
[392055044,1761124244716,-172.54370901,0.00034083,5]
[392055045,1761124244727,-156.5171266,0.0003409,2]
[392055046,1761124244739,-617.96323687,0.0003409,2]
[392055047,1761124244751,-952.4835028,0.0003409,2]
[392055048,1761124246332,-221.04752876,0.00033543,2]
[392055049,1761124246342,-221.04752876,0.00033595,2]
[392055050,1761124246353,-150.0,0.00033978,3]
[392055051,1761124246363,-1150.95880555,0.0003409,2]
[392055052,1761124246640,-221.04752876,0.00033578,2]
[392055053,1761124246651,-1992.74477208,0.0003409,2]
[392055054,1761124246693,-2593.0769729,0.0003409,2]
[392055056,1761124300745,5000.0,0.0002,2]
[392055057,1761124424124,8509.7,0.0002,2]
[392055058,1761124613843,272.62,0.00013699,2]
[392055061,1761124758412,213.0,0.0003013,120]
[392055062,1761124759220,207.0,0.0003013,120]
[392055063,1761124759974,336.0,0.0003013,120]
[392055064,1761124760757,650.0,0.0003013,120]
[392055065,1761124761554,1716.0,0.0003013,120]
[392055066,1761124762389,1885.0,0.0003013,120]
[392055067,1761124763176,1246.0,0.0003013,120]
[392055068,1761124763966,1615.0,0.0003013,120]
[392055069,1761124764788,303.0,0.0003013,120]
[392055070,1761124765583,1971.0,0.0003013,120]
[392055071,1761124766559,1519.0,0.0003013,120]
[392055072,1761124767474,241.0,0.0003013,120]
[392055073,1761124768286,1705.0,0.0003013,120]
[392055074,1761124769075,548.0,0.0003013,120]
[392055075,1761124769876,934.0,0.0003013,120]
[392055076,1761124770665,522.0,0.0003013,120]
[392055077,1761124771648,1217.0,0.0003013,120]
[392055078,1761124772272,1803.0,0.0003013,120]
[392055079,1761124773057,1019.0,0.0003013,120]
[392055080,1761124775516,174.0,0.0003013,120]
[392055081,1761124776321,483.0,0.0003013,120]
[392055082,1761124777378,471.0,0.0003013,120]
[392055083,1761124778006,392.0,0.0003013,120]
[392055084,1761124779361,151.0,0.0003013,120]
[392055085,1761124780193,205.0,0.0003013,120]
[392055086,1761124781012,320.0,0.0003013,120]
[392055087,1761124781945,355.0,0.0003013,120]
[392055088,1761124782811,413.0,0.0003013,120]
[392055089,1761124783618,266.0,0.0003013,120]
[392055090,1761124784415,437.0,0.0003013,120]
[392055091,1761124785212,490.0,0.0003013,120]
[392055092,1761124786020,209.0,0.0003013,120]
[392055093,1761124786802,236.0,0.0003013,120]
[392055094,1761124787606,301.0,0.0003013,120]
[392055095,1761124788438,348.0,0.0003013,120]
[392055096,1761124789253,189.0,0.0003013,120]
[392055097,1761124790202,494.0,0.0003013,120]
[392055098,1761124790994,383.0,0.0003013,120]
[392055099,1761124811083,-151.88773217,0.0002044,120]
[392055100,1761124811114,-150.0,0.00022206,120]
[392055101,1761124981916,951.04,0.00025178,120]
[392055102,1761125012748,1500.0,0.0002507,120]
[392055103,1761125108336,73702.0890512,0.00015,2]
[392055104,1761125108366,100000.0,0.00015,2]
[392055105,1761125108393,100000.0,0.00015,2]
[392055106,1761125108421,13299.70927681,0.00015,2]
[392055107,1761125108443,15000.0,0.00015,2]
[392055108,1761125108468,15000.0,0.00015,2]
[392055109,1761125108493,15000.0,0.00015,2]
[392055110,1761125108516,15000.0,0.00015,2]
[392055111,1761125108541,15000.0,0.00015,2]
[392055112,1761125108565,15000.0,0.00015,2]
[392055113,1761125108590,15000.0,0.00015,2]
[392055114,1761125108614,15000.0,0.00015,2]
[392055115,1761125108638,794.25989451,0.00015,2]
[392055116,1761125132278,206.92025416,0.0002,120]
[392055117,1761125229141,423.30072299,0.0002301,120]
[392055118,1761125266842,167.37727501,0.00027,120]
[392055119,1761125277402,14205.74010549,0.00015,2]
[392055120,1761125277426,15000.0,0.00015,2]
[392055121,1761125277450,15000.0,0.00015,2]
[392055122,1761125277473,15000.0,0.00015,2]
[392055123,1761125277496,15000.0,0.00015,2]
[392055124,1761125277522,2930.08804703,0.00015,2]
[392055127,1761125324375,12069.91195297,0.00015,2]
[392055128,1761125324395,12795.14085341,0.00015,2]
[392055134,1761125435594,-754.78810055,0.000153,2]
[392055135,1761125435606,-762.85189945,0.000153,2]
[392055136,1761125435615,-195.0,0.0001575,2]
[392055137,1761125435625,-2882.22073103,0.000162,5]
[392055138,1761125435752,-416.16595857,0.000162,5]
[392055143,1761125437380,-292.642,0.000162,5]
[392055144,1761125437394,-521.27368568,0.000162,5]
[392055145,1761125437434,-3498.1837395,0.000162,5]
[392055146,1761125437446,-2565.46205748,0.000162,5]
[392055147,1761125437458,-503.62431474,0.000162,5]
[392055148,1761125437470,-519.31025505,0.000162,5]
[392055149,1761125437482,-2704.60862925,0.000162,5]
[392055313,1761125439382,-473.93335833,0.000162,5]
[392055316,1761125439398,-22282.27036718,0.000162,5]
[392055319,1761125439407,-195.0,0.0001663,2]
[392055322,1761125439417,-302.47315593,0.0001683,2]
[392055326,1761125439426,-195.0,0.0001683,2]
[392055329,1761125439437,-150.0,0.0001683,2]
[392055332,1761125439447,-300.0,0.0001683,2]
[392055335,1761125439457,-250.0,0.00017,2]
[392055337,1761125439468,-4000.0,0.0001782,2]
[392055340,1761125439479,-4000.0,0.00018075,2]
[392055343,1761125439491,-300.0,0.00019,2]
[392055346,1761125439500,-1374.56450042,0.00019282,2]
[392055348,1761125439510,-9412.28993529,0.0001995,15]
[392055350,1761125439521,-4156.19990002,0.0001995,15]
[392055352,1761125439532,-839.15,0.0001995,15]
[392055354,1761125439543,-1946.30015501,0.0001995,15]
[392055356,1761125439555,-4477.33751417,0.0001995,15]
[392055358,1761125439565,-500.0,0.00019973,2]
[392055360,1761125439574,-163.61634609,0.00019973,2]
[392055362,1761125439584,-500.0,0.00019973,2]
[392055364,1761125439593,-18761.68726828,0.0002,5]
[392055368,1761125439620,-4347.70237203,0.0002,5]
[392055370,1761125439631,-452.05207313,0.0002,5]
[392055659,1761125442440,-500.0,0.00019998,2]
[392055661,1761125442449,-500.0,0.00019998,2]
[392055663,1761125442458,-194.03000001,0.00019998,2]
[392055665,1761125442471,-305.96999999,0.00019998,2]
[392055667,1761125442481,-15.83455377,0.00019998,2]
[392055671,1761125442511,-484.16544623,0.00019998,2]
[392055673,1761125442521,-500.0,0.00019998,2]
[392055675,1761125442530,-500.0,0.00019998,2]
[392055677,1761125442539,-500.0,0.00019998,2]
[392055679,1761125442548,-306.67829863,0.00019998,2]
[392055681,1761125442558,-500.0,0.00019998,2]
[392055683,1761125442567,-500.0,0.00019998,2]
[392055685,1761125442576,-35878.00239499,0.0002,5]
[392055687,1761125442586,-195.0,0.00020009,2]
[392055689,1761125442595,-300.0,0.00020069,2]
[392055691,1761125442605,-190.0,0.00020098,2]
[392055693,1761125442614,-470.0,0.00020138,2]
[392055695,1761125442623,-287.0,0.00020178,2]
[392055697,1761125442632,-381.4839924,0.00020184,2]
[392055700,1761125442643,-272.62,0.00020187,2]
[392055701,1761125442652,-292.0,0.00020218,2]
[392055704,1761125442661,-1303.76440525,0.00020219,2]
[392055706,1761125442671,-232.0,0.00020259,2]
[392055707,1761125442680,-290.0,0.00020299,2]
[392055709,1761125442689,-350.0,0.00020339,2]
[392055711,1761125442699,-473.0,0.00020379,2]
[392055714,1761125442709,-310.0,0.00020419,2]
[392055715,1761125442718,-279.0,0.00020459,2]
[392055717,1761125442727,-467.0,0.00020499,2]
[392055719,1761125442737,-1000.0,0.00020521,2]
[392055721,1761125442747,-1109.31961018,0.00020521,2]
[392055724,1761125442756,-300.0,0.00020539,2]
[392055725,1761125442765,-167.0,0.0002058,2]
[392055728,1761125442775,-347.0,0.0002062,2]
[392055730,1761125442784,-315.0,0.0002066,2]
[392055732,1761125442794,-1000.0,0.0002066,2]
[392055734,1761125442807,-1000.0,0.0002066,2]
[392055736,1761125442816,-1000.0,0.0002066,2]
[392055738,1761125442826,-1000.0,0.0002066,2]
[392055740,1761125442836,-1000.0,0.0002066,2]
[392055742,1761125442845,-454.0,0.000207,2]
[392055744,1761125442854,-377.0,0.0002074,2]
[392055746,1761125442863,-204.0,0.0002078,2]
[392055748,1761125442873,-442.0,0.0002082,2]
[392055750,1761125442882,-379.0,0.0002086,2]
[392055752,1761125442892,-265.0,0.000209,2]
[392055754,1761125442901,-602.41010152,0.00021068,2]
[392055756,1761125442911,-1767.0,0.00021768,2]
[392055758,1761125442920,-1981.0,0.00021812,2]
[392055760,1761125442929,-1000.0,0.00021812,2]
[392055763,1761125442939,-1000.0,0.00021812,2]
[392055765,1761125442948,-878.0,0.00021812,2]
[392055767,1761125442958,-1022.0,0.00021855,2]
[392055769,1761125442967,-1334.0,0.00021899,2]
[392055771,1761125442977,-337.0,0.00021942,2]
[392055773,1761125442991,-300.0,0.00021945,2]
[392055775,1761125442999,-2796.91171648,0.00021945,2]
[392055777,1761125443009,-490.59621237,0.00021945,2]
[392055779,1761125443018,-195.0,0.00021945,2]
[392055781,1761125443028,-686.0,0.00021986,2]
[392055783,1761125443037,-1335.0,0.00022029,2]
[392055785,1761125443046,-1767.0,0.00022073,2]
[392055787,1761125443056,-957.0,0.00022116,2]
[392055789,1761125443066,-1501.0,0.00022159,2]
[392055791,1761125443075,-1718.0,0.00022203,2]
[392055793,1761125443086,-550.22309999,0.00022206,2]
[392055796,1761125443095,-2500.0,0.00022206,2]
[392055798,1761125443105,-992.0,0.00022246,2]
[392055800,1761125443115,-513.0,0.0002229,2]
[392055802,1761125443124,-1355.0,0.00022333,2]
[392055804,1761125443133,-795.0,0.00022377,2]
[392055806,1761125443142,-1014.0,0.0002242,2]
[392055808,1761125443151,-1954.0,0.00022464,2]
[392055810,1761125443160,-198.0,0.00022507,2]
[392055812,1761125443169,-1263.0,0.00022551,2]
[392055814,1761125443179,-1438.0,0.00022594,2]
[392055816,1761125443193,-1393.0,0.00022637,2]
[392055818,1761125443202,-1724.0,0.00022681,2]
[392055820,1761125443212,-983.0,0.00022724,2]
[392055822,1761125443221,-1682.0,0.00022768,2]
[392055824,1761125443231,-1491.0,0.00022811,2]
[392055825,1761125443240,-1113.0,0.00022855,2]
[392055826,1761125443251,-797.0,0.00022898,2]
[392055827,1761125443260,-231.0,0.00022942,2]
[392055828,1761125443268,-1902.0,0.00022985,2]
[392055829,1761125443278,-1205.0,0.0002342,2]
[392055830,1761125443287,-183.1,0.00024673,2]
[392055831,1761125443298,-230.88907714,0.00024699,2]
[392055832,1761125443307,-530.18758339,0.00024699,2]
[392055833,1761125443318,-77224.0,0.000247,2]
[392055835,1761125443327,-500.0,0.00024932,2]
[392055837,1761125443337,-500.0,0.00024932,2]
[392055839,1761125443346,-500.0,0.00024932,2]
[392055841,1761125443356,-500.0,0.00024932,2]
[392055843,1761125443365,-500.0,0.00024932,2]
[392055844,1761125443374,-500.0,0.00024932,2]
[392055845,1761125443383,-1013.66,0.00025,2]
[392055846,1761125443398,-2389.65,0.00025016,2]
[392055847,1761125443407,-166.72,0.00025064,2]
[392055849,1761125443417,-3343.13769257,0.00025309,2]
[392055850,1761125443426,-1000.0,0.00025328,2]
[392055851,1761125443437,-291.16427158,0.00025328,2]
[392055852,1761125443446,-151.73271958,0.000254,2]
[392055853,1761125443456,-150.6,0.00025409,2]
[392055854,1761125443465,-3213.37,0.00025432,2]
[392055855,1761125443475,-1013.66,0.000255,2]
[392055856,1761125443486,-5513.0,0.000255,3]
[392055857,1761125443496,-152.13,0.00025655,2]
[392055858,1761125443505,-160.12601739,0.00025825,2]
[392055859,1761125443514,-500.0,0.00025825,2]
[392055860,1761125443523,-160.1266859,0.00025825,2]
[392055861,1761125443533,-350.5871001,0.00025825,2]
[392055862,1761125443542,-500.0,0.00025825,2]
[392055863,1761125443551,-159.12589483,0.00025825,2]
[392055864,1761125443563,-500.0,0.00025825,2]
[392055865,1761125443579,-160.1345788,0.00025825,2]
[392055866,1761125443592,-500.0,0.00025825,2]
[392055867,1761125443601,-500.0,0.00025825,2]
[392055868,1761125443611,-205.26204944,0.00025825,2]
[392055869,1761125443621,-157.61370662,0.00025825,2]
[392055870,1761125443630,-500.0,0.00025825,2]
[392055871,1761125443639,-500.0,0.00025825,2]
[392055872,1761125443649,-5513.0,0.000262,5]
[392055873,1761125443658,-3343.13769251,0.00026341,2]
[392055874,1761125443668,-734.90166428,0.00026373,2]
[392055875,1761125443677,-500.0,0.00026373,2]
[392055876,1761125443687,-1000.0,0.00026373,2]
[392055877,1761125443696,-509.0037394,0.00026373,2]
[392055878,1761125443706,-1000.0,0.00026373,2]
[392055879,1761125443715,-160.0,0.00026375,2]
[392055880,1761125443725,-150.99,0.00026591,2]
[392055881,1761125443734,-272.62,0.00026676,2]
[392055882,1761125443744,-1500.0,0.00026921,2]
[392055883,1761125443753,-1500.0,0.00026921,2]
[392055884,1761125443763,-3343.13769251,0.00027373,2]
[392055885,1761125443772,-300.0,0.00027397,2]
[392055886,1761125443781,-739.96048342,0.00027469,5]
[392055887,1761125443791,-2000.0,0.00027469,5]
[392055888,1761125443800,-150.0,0.0002765,2]
[392055889,1761125443810,-500.0,0.00027999,2]
[392055890,1761125443819,-64900.45418388,0.00028,2]
[392055891,1761125443829,-1854.92099856,0.00028,120]
[392055892,1761125443839,-2500.0,0.00028017,5]
[392055893,1761125443848,-163.44,0.00028193,10]
[392055894,1761125443857,-166.72,0.00028197,2]
[392055895,1761125443866,-184.39662,0.00028253,4]
[392055896,1761125443875,-150.0,0.00028261,10]
[392055897,1761125443885,-951.04,0.00028325,120]
[392055898,1761125443895,-183.1,0.00028374,2]
[392055899,1761125443904,-3343.13769251,0.00028406,2]
[392055900,1761125443914,-374.125,0.00028434,19]
[392055901,1761125443924,-154.6,0.00028699,10]
[392055902,1761125443933,-249.9,0.00028705,2]
[392055903,1761125443943,-175.8126043,0.0002889,2]
[392055904,1761125443952,-9668.11203261,0.00028949,2]
[392055905,1761125443961,-7822.793401,0.00028959,2]
[392055906,1761125443975,-180067.37854243,0.0002899,2]
[392055907,1761125444020,-3626.75007757,0.0002899,2]
[392055908,1761125444029,-600.0,0.0002899,30]
[392055909,1761125444039,-600.0,0.0002899,30]
[392055910,1761125444048,-600.0,0.0002899,30]
[392055911,1761125444058,-156.89945,0.0002899,30]
[392055912,1761125444067,-152.353607,0.0002899,30]
[392055913,1761125444077,-600.0,0.0002899,30]
[392055914,1761125444087,-208.529734,0.0002899,30]
[392055915,1761125444097,-106269.89911988,0.00029,2]
[392055916,1761125444123,-199642.48521321,0.00029,2]
[392055917,1761125444156,-544.05,0.00029,2]
[392055927,1761125445427,-151.0,0.0002899,30]
[392055928,1761125445440,-556.826018,0.0002899,30]
[392055929,1761125445449,-10628.173982,0.00029,2]
[392055930,1761125445482,-466.81370507,0.00029,2]
[392055931,1761125445494,-18896.79102624,0.00029,2]
[392055932,1761125445589,-32929.89482861,0.00029,2]
[392055933,1761125445599,-600.0,0.00029,30]
[392055934,1761125445608,-600.0,0.00029,30]
[392055935,1761125445618,-600.0,0.00029,30]
[392055936,1761125445627,-600.0,0.00029,30]
[392055937,1761125445637,-151.0,0.00029,30]
[392055938,1761125445646,-205.66602057,0.00029059,120]
[392055939,1761125445655,-3343.13769251,0.00029438,2]
[392055940,1761125445664,-7822.79340099,0.00029586,2]
[392055941,1761125445674,-77614.56055205,0.000299,2]
[392055942,1761125445683,-918.96483403,0.0003,120]
[392055943,1761125445692,-500.0,0.000301,5]
[392055944,1761125445701,-150.0,0.000301,120]
[392055945,1761125445711,-150.0,0.000301,120]
[392055946,1761125445720,-150.0,0.000301,120]
[392055947,1761125445729,-150.0,0.000301,120]
[392055948,1761125445738,-150.0,0.000301,120]
[392055949,1761125445747,-500.0,0.000301,2]
[392055950,1761125445756,-180.0,0.0003013,120]
[392055951,1761125445768,-323.51062512,0.0003013,120]
[392055952,1761125445778,-636.80639179,0.0003013,120]
[392055953,1761125445798,-2040.44758,0.00030137,120]
[392055954,1761125445808,-150.0,0.00030137,120]
[392055955,1761125445818,-9668.11203261,0.00030202,2]
[392055956,1761125445827,-7822.79340099,0.00030212,2]
[392055957,1761125445837,-3361.45117,0.0003036,2]
[392055958,1761125445850,-3343.13769251,0.0003047,2]
[392055959,1761125445860,-150.95699388,0.00030492,5]
[392055960,1761125445870,-3361.45117,0.0003061,2]
[392055961,1761125445880,-584.41,0.000307,30]
[392055962,1761125445891,-250.0,0.00030728,2]
[392055963,1761125445901,-150.0,0.00030728,2]
[392055964,1761125445911,-150.0,0.00030728,120]
[392055965,1761125445921,-209.92,0.00030728,2]
[392055966,1761125445930,-3420.12,0.00030728,2]
[392055967,1761125445941,-9668.11203261,0.00030829,2]
[392055968,1761125445950,-7822.79340099,0.00030839,2]
[392055969,1761125446141,-2568.61098236,0.0003084,2]
[392055970,1761125446151,-3361.45117,0.0003086,2]
[392055971,1761125446160,-600.0,0.0003086,30]
[392055972,1761125446169,-600.0,0.0003086,30]
[392055973,1761125446178,-600.0,0.0003086,30]
[392055974,1761125446188,-600.0,0.0003086,30]
[392055975,1761125446197,-151.0,0.0003086,30]
[392055976,1761125446208,-3361.45117,0.0003111,2]
[392055977,1761125446217,-166.72,0.0003133,2]
[392055978,1761125446227,-209.0,0.00031348,120]
[392055979,1761125446237,-9668.11203261,0.0003135,2]
[392055980,1761125446246,-3361.45117,0.0003136,2]
[392055981,1761125446256,-7822.79340099,0.00031466,2]
[392055982,1761125446265,-951.04,0.00031472,120]
[392055983,1761125446275,-10015.95746026,0.000315,2]
[392055984,1761125446285,-3343.13769251,0.00031502,2]
[392055985,1761125446294,-3361.45117,0.0003161,2]
[392055986,1761125446303,-150.84,0.0003198,2]
[392055987,1761125446314,-38672.4481304,0.0003199,2]
[392055988,1761125446324,-96059.55339549,0.00032,2]
[392055989,1761125446333,-600.0,0.00032,30]
[392055990,1761125446342,-600.0,0.00032,30]
[392055991,1761125446351,-600.0,0.00032,30]
[392055992,1761125446360,-600.0,0.00032,30]
[392055993,1761125446369,-207.206195,0.00032,30]
[392055994,1761125446378,-7822.79340099,0.00032092,2]
[392055995,1761125446391,-584.41,0.000321,30]
[392055996,1761125446404,-878.32184437,0.000323,2]
[392055997,1761125446413,-3298.50384811,0.00032336,2]
[392055998,1761125446423,-3411.0,0.00032512,2]
[392055999,1761125446432,-572.0,0.00032512,2]
[392056000,1761125446443,-818.0,0.00032512,2]
[392056001,1761125446452,-2052.0,0.00032512,2]
[392056002,1761125446463,-1318.298,0.00032512,2]
[392056003,1761125446475,-605.0,0.00032512,2]
[392056004,1761125446485,-2592.0,0.00032512,2]
[392056005,1761125446495,-1184.0,0.00032512,2]
[392056006,1761125446506,-207.576365,0.00032512,30]
[392056007,1761125446516,-207.576365,0.00032512,30]
[392056008,1761125446527,-207.576365,0.00032512,30]
[392056009,1761125446536,-207.576365,0.00032512,30]
[392056010,1761125446545,-376.978419,0.00032512,30]
[392056011,1761125446554,-376.978419,0.00032512,30]
[392056012,1761125446563,-376.978419,0.00032512,30]
[392056013,1761125446573,-376.978419,0.00032512,30]
[392056014,1761125446582,-3343.13769251,0.00032535,2]
[392056015,1761125446591,-2000.0,0.000326,2]
[392056016,1761125446600,-500.0,0.00032644,7]
[392056017,1761125446611,-500.0,0.00032644,7]
[392056018,1761125446620,-500.0,0.00032644,7]
[392056019,1761125446629,-7822.79340099,0.00032719,2]
[392056020,1761125446639,-4747.35149261,0.000328,2]
[392056021,1761125446650,-339.0,0.00032877,2]
[392056022,1761125446659,-209.0,0.00032915,120]
[392056023,1761125446668,-1542.07537147,0.00033,2]
[392056024,1761125446677,-1532.13268348,0.00033,2]
[392056025,1761125446687,-150.97605356,0.00033,2]
[392056026,1761125446696,-815.41859179,0.00033077,2]
[392056027,1761125446706,-225.84,0.00033141,2]
[392056028,1761125446715,-272.62,0.00033165,2]
[392056029,1761125446726,-584.41,0.000332,30]
[392056030,1761125446735,-7822.79340099,0.00033346,2]
[392056031,1761125446745,-1425.0,0.00033354,2]
[392056032,1761125446755,-5301.50609745,0.00033463,2]
[392056033,1761125446764,-5301.50609745,0.00033465,2]
[392056034,1761125446774,-500.0,0.00033466,7]
[392056035,1761125446784,-2558.41186157,0.00033475,2]
[392056036,1761125446793,-1191.1728984,0.000335,2]
[392056037,1761125446803,-980.84999083,0.00033505,2]
[392056038,1761125446812,-197.0,0.00033509,7]
[392056039,1761125446822,-1051.49832049,0.00033515,2]
[392056040,1761125446832,-2558.41186157,0.00033528,2]
[392056041,1761125446842,-197.0,0.0003353,7]
[392056042,1761125446852,-1051.49832049,0.00033541,2]
[392056043,1761125446862,-5301.50609745,0.00033544,2]
[392056044,1761125446872,-150.0,0.00033544,120]
[392056045,1761125446883,-3343.13769251,0.00033567,2]
[392056046,1761125446893,-377.45951123,0.0003357,2]
[392056047,1761125446902,-980.84999083,0.00033575,2]
[392056048,1761125446912,-2558.41186157,0.00033604,2]
[392056049,1761125446922,-2056.36668692,0.00033619,6]
[392056050,1761125446932,-377.45951123,0.00033632,2]
[392056051,1761125446942,-1051.49832049,0.00033681,2]
[392056052,1761125446952,-197.0,0.00033683,2]
[392056053,1761125446962,-377.45951123,0.00033687,2]
[392056054,1761125446975,-980.84999083,0.00033692,2]
[392056055,1761125446984,-1958.64151499,0.0003375,2]
[392056056,1761125446994,-1023.81,0.00033772,120]
[392056057,1761125447004,-26376.35535064,0.000338,2]
[392056058,1761125447014,-168.0,0.00033806,2]
[392056059,1761125447023,-1425.0,0.00033841,2]
[392056060,1761125447033,-197.0,0.00033887,2]
[392056061,1761125447042,-522.84973442,0.00033932,120]
[392056062,1761125447051,-500.0,0.00033932,120]
[392056063,1761125447062,-5000.0,0.00033933,2]
[392056064,1761125447071,-4625.7489679,0.00033946,2]
[392056065,1761125447081,-205.3713149,0.00033946,2]
[392056066,1761125447090,-874.0,0.00033963,5]
[392056067,1761125447099,-5800.0,0.00033966,2]
[392056068,1761125447109,-7822.79340099,0.00033972,2]
[392056069,1761125447118,-160.1266859,0.00033973,5]
[392056070,1761125447127,-159.983392,0.00033973,5]
[392056071,1761125447136,-160.09627954,0.00033973,2]
[392056072,1761125447146,-160.12668592,0.00033973,2]
[392056073,1761125447156,-160.1260809,0.00033973,2]
[392056074,1761125447166,-5800.0,0.00033975,2]
[392056075,1761125447175,-2500.0,0.00033981,7]
[392056076,1761125447184,-5800.0,0.00033983,2]
[392056077,1761125447194,-476.53368403,0.0003399,2]
[392056078,1761125447203,-459.8812,0.0003399,2]
[392056079,1761125447212,-2500.0,0.0003399,7]
[392056080,1761125447222,-500.0,0.00033991,2]
[392056081,1761125447231,-5800.0,0.00033992,2]
[392056082,1761125447240,-1425.0,0.00033993,2]
[392056083,1761125447249,-762.82,0.00033999,2]
[392056084,1761125447258,-2500.0,0.00033999,7]
[392056085,1761125447268,-600.0,0.00033999,30]
[392056086,1761125447278,-600.0,0.00033999,30]
[392056087,1761125447287,-600.0,0.00033999,30]
[392056088,1761125447296,-600.000008,0.00033999,30]
[392056089,1761125447306,-300.0,0.00034,13]
[392056090,1761125447315,-205.12,0.00034,13]
[392056091,1761125447325,-160.53722179,0.00034,6]
[392056092,1761125447334,-5800.0,0.00034,2]
[392056093,1761125447343,-11544.25986541,0.00034,30]
[392056094,1761125447353,-976.96,0.00034,2]
[392056095,1761125447362,-1000.0,0.00034005,2]
[392056096,1761125447372,-1425.0,0.00034016,2]
[392056097,1761125447381,-171.83540079,0.00034022,120]
[392056098,1761125447390,-151.0,0.00034023,30]
[392056099,1761125447404,-151.0,0.00034023,30]
[392056100,1761125447413,-151.0,0.00034023,30]
[392056101,1761125447422,-207.576365,0.00034023,30]
[392056102,1761125447431,-207.576365,0.00034023,30]
[392056103,1761125447442,-207.576365,0.00034023,30]
[392056104,1761125447452,-207.576365,0.00034023,30]
[392056105,1761125447462,-376.978419,0.00034023,30]
[392056106,1761125447472,-376.978419,0.00034023,30]
[392056107,1761125447482,-376.978419,0.00034023,30]
[392056108,1761125447491,-376.978419,0.00034023,30]
[392056109,1761125447500,-500.0,0.00034032,30]
[392056110,1761125447511,-224.80533801,0.00034032,120]
[392056111,1761125447521,-1023.81,0.00034032,120]
[392056112,1761125447530,-500.0,0.00034032,2]
[392056113,1761125447540,-14683.35832,0.00034033,2]
[392056114,1761125447549,-252373.0246995,0.00034033,2]
[392056115,1761125447559,-3338.6422212,0.00034033,2]
[392056116,1761125447569,-151.0,0.00034033,30]
[392056117,1761125447580,-155.820159,0.00034033,30]
[392056118,1761125447590,-151.0,0.00034033,30]
[392056119,1761125447600,-151.0,0.00034033,30]
[392056120,1761125447611,-151.0,0.00034033,30]